bitfinex/quotes_BTCUSD_20240729
["timestamp","ask_amount","ask_price","bid_price","bid_amount"]
[1722266310952,2.63247539,68003.0,68002.0,2.85006939]
[1722266310953,2.77557478,68003.0,68002.0,2.85006939]
[1722266311151,2.85087478,68003.0,68002.0,2.85006939]
[1722266311513,2.81731918,68003.0,68002.0,2.3963874]
[1722266311688,2.51731918,68003.0,68002.0,2.3963874]
[1722266312136,2.41726278,68003.0,68002.0,2.3953874]
[1722266312344,2.35121979,68003.0,68002.0,2.3953874]
[1722266312521,2.37721979,68003.0,68002.0,2.3963874]
[1722266312887,2.06011579,68003.0,68002.0,2.3963874]
[1722266313132,2.03407139,68003.0,68002.0,2.3953874]
[1722266313309,2.21421361,68003.0,68002.0,2.3113874]
[1722266313731,2.07111422,68003.0,68002.0,2.3113874]
[1722266314923,1.77701022,68003.0,68002.0,2.3113874]
[1722266315136,1.75396739,68003.0,68002.0,2.3113874]
[1722266315310,1.49926739,68003.0,68002.0,2.3113874]
[1722266315508,1.18646339,68003.0,68002.0,2.3113874]
[1722266318672,1.20046339,68003.0,68002.0,2.3123114]
[1722266319041,1.20130339,68003.0,68002.0,2.3123114]
[1722266319241,0.89319939,68003.0,68002.0,2.3123114]
[1722266319797,1.18730339,68003.0,68002.0,2.3123114]
[1722266320116,1.55437339,68003.0,68002.0,2.3123114]
[1722266320485,1.60788984,68003.0,68002.0,2.3123114]
[1722266320698,2.12203285,68003.0,68002.0,2.3123114]
[1722266320851,1.82792885,68003.0,68002.0,2.3123114]
[1722266321052,1.98262885,68003.0,68002.0,2.3123114]
[1722266321260,2.08262885,68003.0,68002.0,2.3123114]
[1722266321460,2.08262885,68003.0,68002.0,2.3113114]
[1722266321461,2.09166966,68003.0,68002.0,2.3113114]
[1722266321989,2.39977366,68003.0,68002.0,2.3113114]
[1722266322401,2.47323801,68003.0,68002.0,2.3113114]
[1722266323183,2.47323801,68003.0,68002.0,1.89598516]
[1722266323184,2.78977411,68003.0,68002.0,1.89598516]
[1722266323424,2.41887045,68003.0,68002.0,1.89598516]
[1722266323626,2.45792396,68003.0,68002.0,1.89598516]
[1722266323826,2.02072057,68003.0,68002.0,1.89598516]
[1722266324042,1.93410733,68003.0,68002.0,1.89598516]
[1722266324269,1.75636652,68003.0,68002.0,1.89598516]
[1722266324383,1.77036652,68003.0,68002.0,1.89598516]
[1722266324591,1.37626252,68003.0,68002.0,1.89598516]
[1722266325028,1.83906652,68003.0,68002.0,1.89598516]
[1722266325229,1.82506652,68003.0,68002.0,1.89598516]
[1722266325580,2.13106652,68003.0,68002.0,0.46955978]
[1722266325787,2.13106652,68003.0,67962.0,0.05]
[1722266325788,0.1547,67995.0,67958.0,0.05]
[1722266326015,0.73884099,68003.0,67933.0,0.303512]
[1722266326016,0.73551,67980.0,67979.0,0.42926131]
[1722266326227,0.73551,67980.0,67961.0,0.1151]
[1722266326228,0.294215,67978.0,67961.0,0.1151]
[1722266326426,0.294215,67978.0,67935.0,0.009097]
[1722266326427,0.73578,67955.0,67954.0,0.0629]
[1722266326582,0.86577313,67955.0,67954.0,0.0629]
[1722266326935,0.12999313,67955.0,67954.0,0.1129]
[1722266327339,0.12999313,67955.0,67954.0,0.2129]
[1722266327547,0.12999313,67955.0,67954.0,0.1129]
[1722266327548,0.25372441,67955.0,67954.0,0.1129]
[1722266327874,0.05305351,67955.0,67954.0,0.1129]
[1722266328041,0.05305351,67955.0,67954.0,0.1127]
[1722266328272,0.0015542,67962.0,67954.0,0.3073997]
[1722266328464,0.50080486,67997.0,67969.0,0.15]
[1722266328465,0.0015542,67970.0,67969.0,0.15]
[1722266328663,0.05932038,67970.0,67969.0,0.1461]
[1722266328809,0.10814874,67970.0,67969.0,0.2461]
[1722266329213,0.14309939,67988.0,67969.0,0.2461]
[1722266329214,0.14309939,67988.0,67981.0,0.05]
[1722266329470,0.147097,67982.0,67981.0,0.05]
[1722266329671,0.06076563,67982.0,67981.0,0.15]
[1722266329872,0.04974143,67982.0,67981.0,0.05]
[1722266330071,0.147097,67982.0,67981.0,0.1271]
[1722266330408,0.147097,67982.0,67981.0,0.13981]
[1722266330409,0.11050706,67982.0,67981.0,0.13981]
[1722266330614,0.11050706,67982.0,67981.0,0.1271]
[1722266330615,0.25760406,67982.0,67981.0,0.1271]
[1722266330727,0.25760406,67982.0,67981.0,0.2271]
[1722266330728,0.11050706,67982.0,67981.0,0.2271]
[1722266330972,0.11050706,67982.0,67981.0,0.2925]
[1722266331325,0.04974143,67982.0,67981.0,0.1925]
[1722266331544,0.04974143,67982.0,67981.0,0.2925]
[1722266332023,0.04974143,67982.0,67981.0,0.1925]
[1722266332231,0.19683843,67982.0,67981.0,0.1925]
[1722266332426,0.25922535,67982.0,67981.0,0.1925]
[1722266332631,0.11212835,67982.0,67981.0,0.2925]
[1722266332836,0.11212835,67982.0,67981.0,0.32175]
[1722266332837,0.04974143,67982.0,67981.0,0.32175]
[1722266333063,0.367911,68003.0,67998.0,0.05]
[1722266333247,0.87044231,67999.0,67998.0,0.05]
[1722266333449,0.72250827,67999.0,67998.0,0.05]
[1722266333672,1.01662927,67999.0,67998.0,0.05]
[1722266333873,0.72250827,67999.0,67998.0,0.05]
[1722266334714,0.441201,67996.0,67995.0,0.05]
[1722266334916,1.01666227,67996.0,67995.0,0.05]
[1722266335256,1.01666227,67996.0,67995.0,0.2944]
[1722266335257,0.13822788,67996.0,67995.0,0.2944]
[1722266335481,0.11519094,67996.0,67995.0,0.2944]
[1722266335685,0.28529341,67996.0,67995.0,0.1944]
[1722266336089,0.07162641,67996.0,67995.0,0.2944]
[1722266336290,0.01484,68003.0,68002.0,0.2942]
[1722266336490,0.01484,68003.0,68002.0,0.32362]
[1722266338007,0.01062658,68013.0,68012.0,0.15]
[1722266338216,0.36549555,68039.0,68012.0,0.15]
[1722266338217,0.04379801,68039.0,68036.0,0.05]
[1722266338569,0.440916,68040.0,68039.0,0.05]
[1722266338795,0.07154355,68039.0,68029.0,0.0801]
[1722266339029,0.07154355,68039.0,68029.0,0.09934]
[1722266339030,0.80651055,68030.0,68029.0,0.09934]
[1722266339273,0.02302172,68030.0,68029.0,0.24934]
[1722266339492,0.07154355,68038.0,68037.0,0.05]
[1722266339719,0.26231058,68046.0,68045.0,0.05]
[1722266339947,0.29658646,68046.0,68045.0,0.05]
[1722266340147,0.27356694,68046.0,68045.0,0.05]
[1722266340461,0.27356694,68046.0,68029.0,0.0801]
[1722266340462,0.146965,68043.0,68042.0,0.05]
[1722266340949,0.58399539,68043.0,68042.0,0.05]
[1722266341218,0.58399539,68043.0,68042.0,0.04]
[1722266341489,0.58399539,68043.0,68029.0,0.0801]
[1722266341490,0.05892,68050.0,68048.0,0.04]
[1722266341742,0.06571204,68054.0,68029.0,0.0801]
[1722266341743,0.146957,68047.0,68046.0,0.04]
[1722266341959,0.146957,68047.0,68046.0,0.028]
[1722266341960,0.21464294,68047.0,68046.0,0.028]
[1722266342181,0.36159994,68047.0,68046.0,0.019]
[1722266342463,0.21464294,68047.0,68043.0,0.019]
[1722266342678,0.44089,68044.0,68043.0,0.019]
[1722266342890,0.29006239,68044.0,68043.0,0.019]
[1722266343299,0.146965,68043.0,68042.0,0.019]
[1722266343435,0.146965,68043.0,68029.0,0.09057585]
[1722266343436,0.440955,68034.0,68032.0,0.019]
[1722266343647,0.440955,68034.0,68029.0,0.1801]
[1722266343648,0.44098,68030.0,68029.0,0.0801]
[1722266343856,0.14309939,68030.0,68029.0,0.09624]
[1722266344049,0.07154355,68040.0,68038.0,0.019]
[1722266344253,0.58402239,68039.0,68038.0,0.019]
[1722266344648,0.58402239,68039.0,68029.0,0.09624]
[1722266344649,0.146989,68032.0,68031.0,0.019]
[1722266344900,0.440968,68032.0,68031.0,0.019]
[1722266345153,0.440968,68032.0,68022.0,0.144]
[1722266345154,0.293983,68031.0,68022.0,0.144]
[1722266345284,0.293983,68031.0,67989.0,0.3458]
[1722266345285,0.07154355,68023.0,68012.0,0.019]
[1722266345496,0.07154355,68023.0,68019.0,0.119]
[1722266345497,0.14309939,68022.0,68019.0,0.119]
[1722266345738,0.14309939,68022.0,68019.0,0.019]
[1722266345994,0.14309939,68022.0,68019.0,0.119]
[1722266345995,0.147015,68020.0,68019.0,0.119]
[1722266346200,0.147015,68020.0,68019.0,0.019]
[1722266346201,0.441046,68020.0,68019.0,0.019]
[1722266346441,0.87817639,68020.0,68019.0,0.019]
[1722266346675,0.14309939,68020.0,68012.0,0.119]
[1722266346908,0.294078,68009.0,68008.0,0.0806]
[1722266347131,0.441117,68009.0,68008.0,0.0806]
[1722266347594,0.58421639,68009.0,68008.0,0.0806]
[1722266347825,0.14309939,68009.0,68008.0,0.1996]
[1722266348039,0.07154355,68023.0,68020.0,0.05]
[1722266348244,0.08753262,68031.0,68008.0,0.09705]
[1722266348245,0.04376634,68032.0,68030.0,0.05]
[1722266348415,0.42926131,68035.0,68029.0,0.019]
[1722266348617,0.146981,68036.0,68030.0,0.05]
[1722266348817,0.146983,68035.0,68034.0,0.05]
[1722266349254,0.146987,68033.0,68032.0,0.069]
[1722266349454,0.146987,68033.0,68032.0,0.019]
[1722266349455,0.58406039,68033.0,68032.0,0.019]
[1722266349814,0.58406039,68033.0,68029.0,0.019]
[1722266349815,0.293987,68030.0,68029.0,0.019]
[1722266349963,0.87806639,68030.0,68029.0,0.019]
[1722266350165,0.14309939,68030.0,68029.0,0.14484]
[1722266350485,0.07154355,68035.0,68031.0,0.019]
[1722266350694,0.146989,68032.0,68031.0,0.019]
[1722266350886,0.29008839,68032.0,68031.0,0.019]
[1722266351048,0.58406739,68032.0,68031.0,0.019]
[1722266351249,0.87804639,68032.0,68031.0,0.019]
[1722266351499,0.87804639,68032.0,68031.0,0.03825]
[1722266351708,0.14309939,68032.0,68031.0,0.13825]
[1722266352462,0.146985,68034.0,68033.0,0.019]
[1722266352680,0.146985,68034.0,68023.0,0.06]
[1722266352681,0.031,68027.0,68006.0,0.019]
[1722266352882,0.50217659,68034.0,67981.0,0.02925]
[1722266352883,0.0797,68006.0,67992.0,0.019]
[1722266353086,0.441247,67989.0,67988.0,0.019]
[1722266353289,0.441247,67989.0,67985.0,0.083]
[1722266353290,0.441253,67988.0,67987.0,0.019]
[1722266353542,1.029591,67988.0,67987.0,0.019]
[1722266353772,0.735422,67988.0,67987.0,0.019]
[1722266353977,0.735422,67988.0,67971.0,0.019]
[1722266353978,0.0821,67987.0,67971.0,0.019]
[1722266354184,0.0821,67987.0,67971.0,0.119]
[1722266354185,0.07154355,67972.0,67971.0,0.119]
[1722266354413,0.36176194,67972.0,67971.0,0.019]
[1722266354620,0.65599994,67972.0,67971.0,0.019]
[1722266354819,1.32855601,67972.0,67971.0,0.019]
[1722266355034,0.74008001,67972.0,67971.0,0.019]
[1722266355275,0.37429846,67972.0,67971.0,0.019]
[1722266355648,0.08408007,67972.0,67971.0,0.1309]
[1722266355846,0.115284,67993.0,67982.0,0.05]
[1722266356053,0.07154355,67986.0,67982.0,0.019]
[1722266356258,0.441286,67983.0,67982.0,0.019]
[1722266356465,0.96131456,67983.0,67982.0,0.019]
[1722266356644,0.96131456,67983.0,67965.0,0.0776]
[1722266356645,0.441331,67976.0,67975.0,0.019]
[1722266356846,0.147108,67978.0,67977.0,0.019]
[1722266357106,0.14309939,67978.0,67977.0,0.019]
[1722266357390,0.29020539,67978.0,67977.0,0.1309]
[1722266357593,0.29020539,67978.0,67977.0,0.119]
[1722266357997,0.58441739,67978.0,67977.0,0.119]
[1722266358199,0.29020539,67978.0,67977.0,0.119]
[1722266358404,0.29020539,67978.0,67965.0,0.0776]
[1722266358405,0.441308,67980.0,67979.0,0.019]
[1722266358606,0.37130853,67980.0,67979.0,0.019]
[1722266358809,0.441331,67976.0,67975.0,0.019]
[1722266359019,0.294264,67966.0,67965.0,0.0776]
[1722266359170,1.32262639,67966.0,67965.0,0.0966]
[1722266359371,0.735682,67964.0,67963.0,0.019]
[1722266359603,0.66256784,67964.0,67963.0,0.019]
[1722266359758,0.95684084,67964.0,67963.0,0.019]
[1722266360160,1.25111384,67964.0,67963.0,0.019]
[1722266360361,0.66256784,67964.0,67963.0,0.019]
[1722266360557,0.36599484,67964.0,67963.0,0.019]
[1722266360764,0.36599484,67964.0,67963.0,0.119]
[1722266361129,0.294208,67979.0,67963.0,0.1384108]
[1722266361334,0.26293253,67975.0,67971.0,0.019]
[1722266361543,0.147121,67971.0,67970.0,0.119]
[1722266361751,0.22576544,67971.0,67970.0,0.019]
[1722266361946,0.81425144,67971.0,67970.0,0.019]
[1722266362085,0.441396,67966.0,67965.0,0.119]
[1722266362310,0.18428809,67975.0,67970.0,0.019]
[1722266362311,0.294232,67974.0,67970.0,0.019]
[1722266362508,0.07995951,67973.0,67972.0,0.119]
[1722266362707,0.0411887,67975.0,67974.0,0.1832]
[1722266362912,0.0411887,67975.0,67974.0,0.20955]
[1722266363357,0.0411887,67975.0,67974.0,0.20655]
[1722266365196,0.1903007,67975.0,67974.0,0.0832]
[1722266365417,0.0411887,67975.0,67974.0,0.1802]
[1722266366036,0.0451887,67975.0,67974.0,0.1802]
[1722266366412,0.0451887,67975.0,67974.0,0.0832]
[1722266366617,0.1923007,67975.0,67974.0,0.0832]
[1722266366773,0.0451887,67975.0,67974.0,0.0832]
[1722266367112,0.19358938,67975.0,67974.0,0.1802]
[1722266367334,0.151112,67975.0,67974.0,0.0832]
[1722266367554,0.004,67975.0,67974.0,0.0832]
[1722266367786,0.004,67975.0,67974.0,0.0831]
[1722266367974,0.004,67975.0,67974.0,0.20615]
[1722266368579,0.147094,67984.0,67983.0,0.1159]
[1722266368851,0.87856539,67984.0,67983.0,0.0189]
[1722266368976,0.14309939,67984.0,67983.0,0.12749]
[1722266369179,0.29019239,67984.0,67983.0,0.12749]
[1722266369383,0.30493947,67997.0,67992.0,0.1159]
[1722266369583,0.74953388,67993.0,67992.0,0.0189]
[1722266370010,1.04368088,67993.0,67992.0,0.0189]
[1722266370414,0.74953388,67993.0,67992.0,0.1159]
[1722266370619,0.74953388,67993.0,67992.0,0.0139]
[1722266371163,0.74953388,67993.0,67992.0,0.1109]
[1722266371164,0.45538688,67993.0,67992.0,0.1109]
[1722266371319,0.74953388,67993.0,67992.0,0.0139]
[1722266371642,0.74953388,67993.0,67992.0,0.1109]
[1722266371787,0.74953388,67993.0,67992.0,0.0139]
[1722266371993,0.74953388,67993.0,67992.0,0.1109]
[1722266372195,0.10367094,67993.0,67992.0,0.1746]
[1722266372413,0.01,67993.0,67992.0,0.1746]
[1722266373373,0.157073,67993.0,67992.0,0.1746]
[1722266373576,0.10485611,67993.0,67992.0,0.1746]
[1722266373721,0.01,67993.0,67992.0,0.1746]
[1722266374111,0.01,67993.0,67992.0,0.1109]
[1722266374112,0.10662242,67993.0,67992.0,0.1109]
[1722266374325,0.30017239,67993.0,67992.0,0.0139]
[1722266374545,0.30017239,67993.0,67990.0,0.0808]
[1722266374546,0.24909397,67993.0,67990.0,0.0808]
[1722266374748,0.24909397,67993.0,67974.0,0.12805]
[1722266374749,0.441273,67985.0,67984.0,0.0139]
[1722266374894,0.43145698,67985.0,67984.0,0.0139]
[1722266375099,0.28436598,67985.0,67982.0,0.0139]
[1722266375302,0.28436598,67985.0,67974.0,0.005]
[1722266375303,0.441337,67975.0,67974.0,0.005]
[1722266375553,0.75197452,67975.0,67974.0,0.005]
[1722266375842,0.147117,67973.0,67972.0,0.0139]
[1722266376046,0.68044497,67973.0,67972.0,0.02916]
[1722266376431,0.97467897,67973.0,67972.0,0.0139]
[1722266376834,0.97467897,67973.0,67972.0,0.1109]
[1722266376835,0.68044497,67973.0,67972.0,0.1109]
[1722266377400,0.68044497,67973.0,67967.0,0.0605]
[1722266377401,0.147119,67972.0,67971.0,0.0139]
[1722266377544,0.147119,67972.0,67957.0,0.01059881]
[1722266377545,0.294277,67963.0,67962.0,0.0139]
[1722266377745,1.34060652,67963.0,67962.0,0.0139]
[1722266377971,1.38449201,67963.0,67962.0,0.0139]
[1722266378242,0.79593801,67963.0,67962.0,0.0139]
[1722266378449,0.13988007,67963.0,67962.0,0.1109]
[1722266378653,0.09599458,67963.0,67962.0,0.1229008]
[1722266379140,0.09599458,67963.0,67962.0,0.1109]
[1722266379567,0.006,67973.0,67959.0,0.009108]
[1722266379568,0.006,67973.0,67972.0,0.1109]
[1722266379772,0.006,67973.0,67972.0,0.1921]
[1722266380429,0.07154355,67983.0,67982.0,0.1109]
[1722266380430,0.21863855,67983.0,67982.0,0.1109]
[1722266380632,0.68921639,67983.0,67982.0,0.1109]
[1722266380855,0.73069021,67983.0,67982.0,0.1099]
[1722266381062,1.02488121,67983.0,67982.0,0.0129]
[1722266381300,1.02488121,67983.0,67972.0,0.0841]
[1722266381301,0.441351,67973.0,67972.0,0.0841]
[1722266381498,0.441351,67973.0,67968.0,0.097]
[1722266381499,0.441376,67969.0,67968.0,0.0029]
[1722266381651,0.441376,67969.0,67968.0,0.02743]
[1722266381652,0.65898047,67969.0,67968.0,0.02743]
[1722266381848,0.65898047,67969.0,67968.0,0.0029]
[1722266382012,0.441435,67960.0,67959.0,0.009108]
[1722266382217,0.441435,67960.0,67959.0,0.012008]
[1722266382218,0.6590486,67960.0,67959.0,0.012008]
[1722266382711,0.9533386,67960.0,67959.0,0.012008]
[1722266382927,0.9533386,67960.0,67959.0,0.0229088]
[1722266383132,0.22165921,67960.0,67959.0,0.1199088]
[1722266383339,0.9533386,67960.0,67959.0,0.009108]
[1722266383537,1.34569625,67960.0,67959.0,0.009108]
[1722266383834,1.05105546,67960.0,67959.0,0.009108]
[1722266384231,0.24030785,67960.0,67959.0,0.109008]
[1722266384465,0.95298307,67960.0,67959.0,0.009108]
[1722266384817,0.68174222,67960.0,67959.0,0.009108]
[1722266385018,0.68174222,67960.0,67959.0,0.056108]
[1722266385195,0.38745222,67960.0,67959.0,0.056108]
[1722266385399,0.68174222,67960.0,67959.0,0.009108]
[1722266385630,0.38745222,67960.0,67959.0,0.009108]
[1722266385973,0.68174222,67960.0,67959.0,0.056108]
[1722266386087,0.38745222,67960.0,67959.0,0.056108]
[1722266386288,0.68174222,67960.0,67959.0,0.056108]
[1722266386490,0.68174222,67960.0,67959.0,0.0670088]
[1722266386713,0.68174222,67960.0,67959.0,0.109008]
[1722266386714,0.24030722,67960.0,67959.0,0.109008]
[1722266386927,0.19943599,67960.0,67959.0,0.109008]
[1722266387124,0.23879759,67960.0,67959.0,0.109008]
[1722266387622,0.23879759,67960.0,67959.0,0.110008]
[1722266387623,0.24679759,67960.0,67959.0,0.110008]
[1722266387831,0.68823259,67960.0,67959.0,0.010108]
[1722266388003,0.98252259,67960.0,67959.0,0.010108]
[1722266388219,1.27681259,67960.0,67959.0,0.010108]
[1722266389412,1.27681259,67960.0,67959.0,0.009108]
[1722266389413,1.26881259,67960.0,67959.0,0.009108]
[1722266390473,1.2779454,67960.0,67959.0,0.009108]
[1722266391537,0.3950754,67960.0,67959.0,0.009108]
[1722266391765,0.3950754,67960.0,67959.0,0.254248]
[1722266391766,0.10483101,67960.0,67959.0,0.254248]
[1722266391979,0.10483101,67960.0,67959.0,0.2796728]
[1722266392192,0.0653366,67960.0,67959.0,0.2796728]
[1722266392624,0.04228745,67960.0,67959.0,0.2796728]
[1722266393412,0.04628745,67960.0,67959.0,0.2796728]
[1722266393650,0.06933115,67960.0,67959.0,0.2796728]
[1722266393799,0.04628745,67960.0,67959.0,0.2796728]
[1722266393999,0.03728745,67960.0,67959.0,0.2796728]
[1722266394409,0.04628745,67960.0,67959.0,0.2796728]
[1722266395210,0.013,67960.0,67959.0,0.2796728]
[1722266396695,0.009,67960.0,67959.0,0.157248]
[1722266396903,0.69276189,67960.0,67959.0,0.053948]
[1722266397136,0.25232809,67960.0,67959.0,0.015848]
[1722266397343,0.25232809,67960.0,67959.0,0.112848]
[1722266397541,0.1082287,67960.0,67959.0,0.106848]
[1722266397915,0.1082287,67960.0,67959.0,0.1175328]
[1722266398160,0.53665851,67960.0,67959.0,0.1175328]
[1722266398391,0.53665851,67960.0,67959.0,0.106848]
[1722266398617,0.53665851,67960.0,67959.0,0.115848]
[1722266398618,0.24336851,67960.0,67959.0,0.115848]
[1722266399062,0.09622351,67960.0,67959.0,0.115848]
[1722266399808,0.09622351,67960.0,67959.0,0.260948]
[1722266399809,0.05790714,67960.0,67959.0,0.260948]
[1722266400035,0.05790714,67960.0,67959.0,0.2870428]
[1722266400036,0.03486072,67960.0,67959.0,0.2870428]
[1722266400542,0.001,67960.0,67959.0,0.2870428]
[1722266401671,0.02404565,67960.0,67959.0,0.260948]
[1722266401886,0.04608817,67960.0,67959.0,0.260948]
[1722266402190,0.04608817,67960.0,67959.0,0.053948]
[1722266402191,0.48752317,67960.0,67959.0,0.053948]
[1722266402401,1.05073084,67960.0,67959.0,0.053948]
[1722266402625,0.96290439,67960.0,67959.0,0.006948]
[1722266402879,0.193304,67960.0,67959.0,0.1175328]
[1722266403091,0.12755042,67960.0,67959.0,0.1175328]
[1722266403287,0.08352094,67960.0,67959.0,0.1175328]
[1722266403418,0.12754853,67960.0,67959.0,0.1175328]
[1722266403617,0.08352094,67960.0,67959.0,0.1175328]
[1722266403845,0.08452094,67960.0,67959.0,0.1235328]
[1722266404064,0.08452094,67960.0,67959.0,0.112848]
[1722266404065,0.23166594,67960.0,67959.0,0.112848]
[1722266404266,0.23166594,67960.0,67959.0,0.012948]
[1722266404267,0.59345388,67960.0,67959.0,0.012948]
[1722266404491,1.32917888,67960.0,67959.0,0.012948]
[1722266404667,1.39599529,67960.0,67959.0,0.059948]
[1722266404867,1.10070529,67960.0,67959.0,0.059948]
[1722266405227,0.08352094,67960.0,67959.0,0.112848]
[1722266405429,0.08352094,67960.0,67959.0,0.194148]
[1722266405746,0.04608817,67960.0,67959.0,0.194148]
[1722266405953,0.07795612,67960.0,67959.0,0.194148]
[1722266406083,0.07795612,67960.0,67959.0,0.2740628]
[1722266406084,0.12198291,67960.0,67959.0,0.2740628]
[1722266406495,0.07795612,67960.0,67959.0,0.2740628]
[1722266406697,0.07761872,67960.0,67959.0,0.2740628]
[1722266407893,0.04608817,67960.0,67959.0,0.4212098]
[1722266408095,0.04608817,67960.0,67959.0,1.20489919]
[1722266408341,0.02304252,67960.0,67959.0,0.85860419]
[1722266408676,0.001,67960.0,67959.0,0.85860419]
[1722266408922,0.08805411,67974.0,67959.0,0.85860419]
[1722266408923,0.0440207,67971.0,67959.0,0.41116219]
[1722266409157,0.0440207,67971.0,67970.0,0.0999]
[1722266409385,0.0440207,67971.0,67970.0,0.2436]
[1722266409386,0.07948544,67971.0,67970.0,0.2436]
[1722266409828,0.07965544,67971.0,67970.0,0.2436]
[1722266410048,0.07965824,67971.0,67970.0,0.2436]
[1722266410220,0.07965824,67971.0,67970.0,0.26796]
[1722266410221,0.123678,67971.0,67970.0,0.26796]
[1722266410510,0.14569105,67971.0,67970.0,0.26796]
[1722266410889,0.04616366,67971.0,67970.0,0.26796]
[1722266411478,0.14560645,67971.0,67970.0,0.26796]
[1722266411639,0.04616366,67971.0,67970.0,0.26796]
[1722266412053,0.11218503,67971.0,67970.0,0.26796]
[1722266412256,0.14709688,67971.0,67970.0,0.26796]
[1722266412461,0.04616366,67971.0,67970.0,0.26796]
[1722266412662,0.09017588,67971.0,67970.0,0.85242939]
[1722266412985,0.04401222,67977.0,67976.0,0.097]
[1722266413178,0.05551094,67977.0,67976.0,0.12114]
[1722266413375,0.05551094,67977.0,67976.0,0.40863939]
[1722266414646,0.03247383,67977.0,67976.0,0.40863939]
[1722266414867,0.04401222,67980.0,67979.0,0.0999]
[1722266415220,0.04401222,67980.0,67979.0,0.15075394]
[1722266415221,0.10211352,67980.0,67979.0,0.15075394]
[1722266415441,0.10211352,67980.0,67979.0,0.29385333]
[1722266415442,0.10209153,67980.0,67979.0,0.29385333]
[1722266415618,0.04399023,67990.0,67987.0,0.0499]
[1722266415820,0.13197069,68001.0,67987.0,0.0499]
[1722266415821,0.04399023,68002.0,68001.0,0.0999]
[1722266416111,0.06598534,68011.0,68009.0,0.0999]
[1722266416313,0.06598534,68011.0,68001.0,0.59879939]
[1722266416314,0.06598534,68013.0,68012.0,0.0999]
[1722266416451,0.07154355,68021.0,68018.0,0.0499]
[1722266416452,0.06598534,68019.0,68018.0,0.0499]
[1722266416656,0.06325059,68019.0,68018.0,0.0999]
[1722266416879,0.06325059,68019.0,68018.0,0.10989]
[1722266416880,0.08413913,68019.0,68018.0,0.10989]
[1722266417054,0.08413869,68019.0,68018.0,0.10989]
[1722266417279,0.21026748,68019.0,68018.0,0.10989]
[1722266417477,0.21026748,68019.0,68016.0,0.0029]
[1722266417478,0.147022,68017.0,68016.0,0.0029]
[1722266417855,0.147022,68017.0,68011.0,0.0999]
[1722266417856,0.441097,68012.0,68011.0,0.0999]
[1722266418083,0.441097,68012.0,68004.0,0.0999]
[1722266418084,0.441144,68005.0,68004.0,0.0999]
[1722266418286,0.57023409,68005.0,68004.0,0.0999]
[1722266418436,1.23568849,68005.0,68004.0,0.0999]
[1722266418647,1.23568849,68005.0,68002.0,0.0029]
[1722266418648,0.30227807,68005.0,68002.0,0.0029]
[1722266418936,0.51269955,68003.0,68002.0,0.0999]
[1722266419151,0.24168497,68004.0,68003.0,0.10989]
[1722266419152,0.22052735,68004.0,68003.0,0.10989]
[1722266419344,0.22052735,68004.0,67985.0,0.01051255]
[1722266419345,2.40247907,67959.0,67958.0,0.294299]
[1722266419513,0.01821499,67959.0,67958.0,3.87033097]
[1722266419735,0.10972306,68004.0,68003.0,0.147052]
[1722266420040,0.10972306,68004.0,68003.0,0.441156]
[1722266420322,0.10972306,68004.0,68003.0,0.73526]
[1722266420543,0.10897282,68004.0,68003.0,0.58425539]
[1722266420670,0.10897282,68004.0,68003.0,0.14309939]
[1722266421084,0.10897282,68004.0,68003.0,0.29015139]
[1722266421287,0.10897282,68004.0,68003.0,1.32155939]
[1722266421492,0.10897282,68004.0,68003.0,1.61566339]
[1722266421687,0.10897282,68004.0,68003.0,1.34455939]
[1722266422323,0.04237282,68004.0,68003.0,1.37536339]
[1722266422547,0.09601677,68028.0,68027.0,0.147]
[1722266422763,0.09601677,68028.0,68027.0,0.68409939]
[1722266422961,0.09601677,68028.0,68027.0,1.29409939]
[1722266423441,0.09601677,68028.0,68027.0,1.00009939]
[1722266423845,0.09601677,68028.0,68027.0,1.08189939]
[1722266424705,0.09601677,68028.0,68027.0,0.76489939]
[1722266424870,0.09601677,68028.0,68027.0,0.32489939]
[1722266425500,0.05,68023.0,68022.0,0.01059663]
[1722266425755,0.05,68023.0,68019.0,0.0803]
[1722266425756,0.07154355,68025.0,68019.0,0.0803]
[1722266425957,0.05,68023.0,68019.0,0.22339939]
[1722266426165,0.05,68021.0,68014.0,0.38344772]
[1722266426354,0.07154355,68015.0,68014.0,0.373]
[1722266426857,0.07154355,68025.0,68017.0,0.294042]
[1722266427006,0.07154355,68025.0,68023.0,0.147008]
[1722266427213,0.07154355,68025.0,68023.0,0.147007]
[1722266427414,0.07154355,68025.0,68024.0,0.147006]
[1722266427626,0.08772434,68032.0,68027.0,0.441]
[1722266427951,0.08772434,68032.0,68024.0,0.147006]
[1722266428156,0.05,68029.0,68025.0,0.1]
[1722266428372,0.13772434,68032.0,68023.0,0.147008]
[1722266428573,0.08772434,68032.0,68023.0,0.294015]
[1722266428758,0.08772434,68032.0,68024.0,0.1]
[1722266428986,0.00829,68028.0,68025.0,0.294008]
[1722266429189,0.00829,68028.0,68027.0,0.441]
[1722266429403,0.00829,68028.0,68027.0,0.247]
[1722266429777,0.00829,68028.0,68027.0,0.6211]
[1722266429932,0.00829,68028.0,68027.0,0.6441]
[1722266430136,0.00829,68028.0,68027.0,0.9381]
[1722266430696,0.00829,68028.0,68027.0,1.37519939]
[1722266430836,0.07154355,68048.0,68027.0,1.37519939]
[1722266430837,0.07154355,68048.0,68027.0,0.34819939]
[1722266431038,0.50080486,68041.0,68040.0,0.58401539]
[1722266431246,0.07154355,68041.0,68040.0,0.97795939]
[1722266431727,0.07154355,68041.0,68040.0,0.1]
[1722266431928,0.08364852,68041.0,68040.0,0.1]
[1722266432417,0.08364852,68041.0,68039.0,0.146973]
[1722266432566,0.08364852,68041.0,68040.0,0.1]
[1722266432771,0.08364852,68041.0,68037.0,0.1]
[1722266432772,0.07154355,68041.0,68037.0,0.1]
[1722266432976,0.07154355,68041.0,68038.0,0.14309939]
[1722266432977,0.05,68040.0,68038.0,0.14309939]
[1722266433145,0.05,68040.0,68039.0,0.1]